[Event "USA Championship Women 2022"]
[Site "Saint Louis"]
[Date "2022.10.06"]
[Round "2.3"]
[White "Lee, Alice"]
[Black "Tokhirjonova, Gulrukhbegim"]
[Result "1-0"]
[ECO "D27"]
[WhiteElo "2263"]
[BlackElo "2336"]
[Annotator "TA"]
[PlyCount "115"]
[EventDate "2022.09.05"]
[EventType "tourn"]
[EventCountry "USA"]
[SourceTitle "playchess.com"]
[Source "ChessBase"]
[SourceQuality "1"]
[TimeControl "40/5400+30:1800+30"]

{[%evp 21,115,21,25,21,28,27,27,21,16,16,25,32,22,23,24,18,26,19,15,8,2,0,0,0,0,0,0,-8,-6,-23,0,-4,0,0,0,-14,32,31,30,20,26,21,21,0,0,-8,196,160,522,515,495,550,541,553,515,540,548,552,480,372,462,442,600,547,600,539,539,531,531,529,643,639,629,585,660,645,624,618,29964,29965,29965,29966,29966,29967,29967,29968,29968,29969,29969,29969,29978,29978,29978,29969,29980,29979]} 1. d4 {[%emt 0:00:03]} d5 {[%emt 0:01:49]} 2. c4 {[%emt 0:00:11]} dxc4 {[%emt 0:00:45]} 3. Nf3 {[%emt 0:00:53]} Nf6 {[%emt 0:01:01]} 4. e3 {[%emt 0:00:12]} e6 {[%emt 0:01:10]} 5. Bxc4 {[%emt 0:00:12]} c5 {[%emt 0:00:55]} 6. O-O {[%emt 0:00:12]} Nc6 {[%emt 0:01:12]} 7. dxc5 {[%emt 0:06:28]} Qxd1 {[%emt 0:02:20]} 8. Rxd1 {[%emt 0:00:06]} Bxc5 {[%emt 0:00:46]} 9. a3 {[%emt 0:01:07]} a6 {[%emt 0:01:15]} 10. b4 {[%emt 0:01:52]} Be7 {[%emt 0:01:41]} 11. Bb2 {[%emt 0:01:00]} O-O {[%emt 0:01:24]} 12. Nbd2 {[%emt 0:03:42][%cal Bb1d2,Bd2c4,Bc4b6][%mdl 32] D27: Queen's Gambit Accepted: Classical main line: 7 e4!? and 7 a4.} Bd7 {[%emt 0:02:44]} 13. Bf1 {[%emt 0:05:21]} Rfd8 {[%emt 0:07:34] [#]} 14. Nc4 $146 {[%emt 0:06:38] White has an edge.} ({Predecessor:} 14. g3 Be8 15. Bg2 Nd5 16. Nc4 b5 17. Nce5 a5 18. Nxc6 Bxc6 19. Nd4 Be8 20. bxa5 Rxa5 {½-½ (54) Goryachkina,A (2610)-Gaponenko,I (2347) Warsaw 2021}) 14... Be8 {[%emt 0:02:13]} 15. Nd4 {[%emt 0:03:24]} Rac8 {[%emt 0:04:06]} 16. Nb6 {[%emt 0:05:06]} Rc7 {[%emt 0:10:58]} 17. Rac1 {[%emt 0:06:13]} Kf8 {[%emt 0:10:01]} 18. Re1 {[%emt 0:11:18]} Nd5 {[%emt 0:08:30]} 19. Nxd5 {[%emt 0:07:18]} Rxd5 {[%emt 0:01:45]} 20. Bd3 {[%emt 0:04:35]} Rdd7 {[%emt 0:12:07]} 21. Nxc6 {[%emt 0:05:25]} (21. Bxh7 Nxd4 22. exd4 (22. Bxd4 g6 $17) 22... g6 23. Rxc7 Rxc7 $17) 21... Rxd3 {[%emt 0:02:24]} 22. Nxe7 {[%emt 0:00:47]} Rxe7 {[%emt 0:01:15]} 23. Bd4 {[%emt 0:02:26] [#] Threatens to win with Bc5.} Rd7 {[%emt 0:00:11]} 24. Rc8 {[%emt 0:01:16] Bc5+ is the strong threat.} f6 {[%emt 0:00:23]} 25. f4 {[%emt 0:00:43]} Ke7 {[%emt 0:03:33]} 26. g4 {[%emt 0:04:29]} Rd8 {[%emt 0:01:12]} 27. Rc7+ {[%emt 0:03:04]} Rd7 {[%emt 0:00:10]} 28. Rec1 {[%emt 0:01:11]} Kd6 {[%emt 0:04:48]} (28... Rxa3 $11 29. Kf2 Rb3) 29. Rc8 $14 {[%emt 0:00:49]} Bg6 {[%emt 0:00:39]} 30. Kf2 {[%emt 0:02:10] Hoping for Ke2.} e5 {[%emt 0:09:57]} 31. Bc5+ {[%emt 0:00:44]} Kd5 {[%emt 0:00:27]} 32. f5 {[%emt 0:00:32]} Bf7 {[%emt 0:00:04]} 33. Kf3 {[%emt 0:01:49] And now Bf8 would win.} e4+ $2 {[%emt 0:02:17] This move loses the game for Black.} (33... g6 $1 $11) 34. Ke2 {[%emt 0:03:12] Black must now prevent Bf8.} g6 $2 {[%emt 0:02:00] [#]} (34... Ke5 $16) 35. Bf8 $1 $18 {[%emt 0:01:18][%csl Gb4,Gc8,Gf8][%cal Rc1c5]} Ke5 {[%emt 0:00:35]} 36. R1c5+ {[%emt 0:01:16]} R3d5 {[%emt 0:00:49]} 37. Rxd5+ {[%emt 0:00:16]} Rxd5 {[%emt 0:00:07]} 38. Rc7 $1 {[%emt 0:00:04][%csl LRb7,LRf7]} gxf5 {[%emt 0:01:13]} 39. Rxf7 {[%emt 0:00:15]} fxg4 {[%emt 0:00:06][%mdl 4096] Endgame KRB-KR} 40. Bg7 {[%emt 0:02:10]} Rd6 {[%emt 0:01:09]} 41. Rxb7 {[%emt 0:30:22]} Rc6 {[%emt 0:30:03]} 42. Bh6 {[%emt 0:00:50]} Rc2+ {[%emt 0:01:51]} 43. Kd1 {[%emt 0:00:07]} Ra2 {[%emt 0:00:04]} 44. Bf4+ {[%emt 0:00:27]} Kd5 {[%emt 0:00:12]} 45. Rxh7 {[%emt 0:00:27]} Kc4 {[%emt 0:00:50]} 46. Rd7 {[%emt 0:00:33]} Kc3 {[%emt 0:00:20]} 47. Rd4 {[%emt 0:00:12]} Rxa3 {[%emt 0:02:18]} 48. Rxe4 {[%emt 0:00:11]} Ra4 {[%emt 0:00:07]} 49. Rd4 {[%emt 0:00:45]} Rxb4 {[%emt 0:00:00]} 50. Rxb4 {[%emt 0:00:00] White mates.} Kxb4 {[%emt 0:00:00] KB-K3P} 51. Kc2 {[%emt 0:00:00]} Kc4 {[%emt 0:00:00]} 52. Kb2 {[%emt 0:00:00]} Kb4 {[%emt 0:00:00]} 53. Bd6+ {[%emt 0:00:00]} Kc4 {[%emt 0:00:00]} 54. Ka3 {[%emt 0:00:00]} Kb5 {[%emt 0:00:00]} 55. Kb3 {[%emt 0:00:00]} a5 {[%emt 0:00:00]} 56. Be7 {[%emt 0:00:00]} f5 {[%emt 0:00:00]} 57. Kc3 {[%emt 0:00:00]} Ka4 {[%emt 0:00:00]} 58. Kd4 {[%emt 0:00:00] Weighted Error Value: White=0.07 (flawless) /Black=0.39} 1-0

[Event "USA Championship Women 2022"]
[Site "Saint Louis"]
[Date "2022.10.06"]
[Round "2.4"]
[White "Yu, Jennifer"]
[Black "Yan, Ruiyang"]
[Result "1-0"]
[ECO "D32"]
[WhiteElo "2297"]
[BlackElo "2220"]
[Annotator "TA"]
[PlyCount "91"]
[EventDate "2022.09.05"]
[EventType "tourn"]
[EventCountry "USA"]
[SourceTitle "playchess.com"]
[Source "ChessBase"]
[SourceQuality "1"]
[TimeControl "40/5400+30:1800+30"]

{[%evp 15,91,2,12,7,7,7,6,7,10,-5,0,0,0,0,0,0,18,0,14,-1,-9,-10,-8,-25,0,-16,25,8,10,13,6,10,15,8,33,8,0,6,7,12,90,56,66,54,82,82,106,106,126,118,175,161,570,551,557,531,518,326,316,315,325,323,305,282,338,315,370,354,577,574,1654,1797,1593,1510,1194,1215,1847,1325]} 1. Nf3 {[%emt 0:02:41]} Nf6 {[%emt 0:00:19]} 2. c4 {[%emt 0:00:26]} e6 {[%emt 0:00:08]} 3. Nc3 {[%emt 0:00:18]} d5 {[%emt 0:00:06]} 4. e3 {[%emt 0:00:06]} c5 {[%emt 0:03:09]} 5. cxd5 {[%emt 0:00:39]} exd5 {[%emt 0:00:38]} 6. d4 {[%emt 0:00:49]} Nc6 {[%emt 0:05:33]} 7. Be2 {[%emt 0:03:46]} cxd4 {[%emt 0:08:39]} 8. Nxd4 {[%emt 0:00:39]} Bc5 {[%emt 0:02:09]} 9. Bf3 {[%emt 0:06:38] D32: Tarrasch Defence: Sidelines and lines without g3.} Ne5 {[%emt 0:13:40]} 10. O-O {[%emt 0:04:44]} O-O {[%emt 0:07:06]} 11. h3 {[%emt 0:07:46] [#] The position is equal.} Re8 $146 {[%emt 0:07:46]} ({Predecessor:} 11... Bb6 12. b3 Re8 13. Bb2 a6 14. Rc1 Qd6 15. Re1 Bd7 16. Be2 Rac8 17. Bf1 Ba5 18. Re2 h5 19. Rec2 h4 20. a3 Bc7 21. f4 Nc6 22. Nxc6 bxc6 23. Qd3 Bb6 24. Na4 Bxe3+ {0-1 (24) Bautista Sanchez,J (2223)-Strikovic,A (2567) Sabadell 2007}) 12. Nb3 {[%emt 0:14:24]} Nxf3+ {[%emt 0:04:10]} 13. Qxf3 {[%emt 0:00:06]} Bb6 {[%emt 0:00:14]} 14. Rd1 {[%emt 0:03:18][%cal Rc3d5]} Be6 {[%emt 0:00:59]} 15. Nd4 {[%emt 0:02:15][%cal Bb3d4,Bd4e2,Be2f4][%mdl 32]} Rc8 {[%emt 0:06:46]} 16. Nde2 {[%emt 0:10:41]} Ne4 {[%emt 0:06:10]} 17. Nf4 {[%emt 0:00:06]} Nxc3 {[%emt 0:00:22]} 18. bxc3 {[%emt 0:00:06][%cal Rf4d5]} Qf6 {[%emt 0:00:50]} 19. Bb2 {[%emt 0:06:13]} Rc4 {[%emt 0:04:32]} 20. Qh5 {[%emt 0:03:00]} Rc5 {[%emt 0:09:30][%cal Od5d4] [#] ...d4! is the strong threat.} (20... Rxf4 $5 21. exf4 Qxf4 $15) 21. Nxd5 {[%emt 0:17:24]} Bxd5 {[%emt 0:01:33]} 22. Rxd5 {[%emt 0:00:03]} g6 {[%emt 0:00:12]} 23. Qd1 {[%emt 0:00:02]} Rxd5 $1 {[%emt 0:00:08]} 24. Qxd5 {[%emt 0:00:03]} Rd8 $1 {[%emt 0:00:11]} 25. Qb5 {[%emt 0:10:34]} ({Don't go for} 25. Qxb7 $2 Rd2 26. Qa8+ Kg7 $19) (25. Qb3 $5 {[%cal Rc3c4]}) 25... Rd2 {[%emt 0:00:19]} 26. Rf1 {[%emt 0:00:02]} Qc6 {[%emt 0:04:34]} 27. Qb3 {[%emt 0:02:07]} Qf6 {[%emt 0:07:20]} (27... Re2 $1 $11 {keeps the balance.}) 28. Bc1 {[%emt 0:02:44]} Rd3 {[%emt 0:02:26]} 29. Qb5 {[%emt 0:00:06]} Rd8 {[%emt 0:00:57]} 30. c4 $36 {[%emt 0:00:38][%cal Bc3c4,Bc4c5][%mdl 2080] White has strong initiative. White now steadily converts the win.} Rc8 {[%emt 0:01:29]} 31. Bb2 {[%emt 0:01:33]} Qe6 {[%emt 0:00:09] [#]} 32. Rc1 $1 {[%emt 0:00:23]} Rd8 {[%emt 0:02:45]} (32... Rc6 $16 33. a4 Qd7) 33. c5 {[%emt 0:01:21]} Rd5 $2 {[%emt 0:00:22]} (33... Bc7 34. Qxb7 Qd7) 34. Qb4 $18 {[%emt 0:00:58]} Bc7 {[%emt 0:00:58]} 35. Qxb7 {[%emt 0:00:11]} Qd7 {[%emt 0:00:40] ( -> ...Rd1+)} 36. Qa8+ {[%emt 0:00:19]} Qd8 {[%emt 0:00:26]} 37. Qxd8+ {[%emt 0:00:12]} Rxd8 {[%emt 0:00:03][%mdl 4096] Endgame KRB-KRB} 38. Bd4 {[%emt 0:00:11]} Rb8 {[%emt 0:00:09]} 39. g3 {[%emt 0:00:43]} h5 {[%emt 0:00:15]} 40. Kg2 {[%emt 0:00:21]} Rb5 {[%emt 0:00:11]} 41. g4 {[%emt 0:05:23]} hxg4 $2 {[%emt 0:00:38]} (41... Kf8 {was necessary.} 42. Bf6 Ra5) 42. hxg4 {[%emt 0:00:05][%cal Bh3g4,Bg4g5][%mdl 32] Hoping for Bf6. White is clearly winning.} Kf8 {[%emt 0:00:09]} 43. Bf6 {[%emt 0:02:09]} Ke8 {[%emt 0:00:15]} 44. c6 {[%emt 0:00:05] Rh1 would kill now.} Rb6 {[%emt 0:00:13]} 45. g5 {[%emt 0:00:15]} Ra6 {[%emt 0:00:15]} 46. Rc4 {[%emt 0:00:32] Weighted Error Value: White=0.19 (very precise) /Black=0.30} 1-0

[Event "USA Championship Women 2022"]
[Site "Saint Louis"]
[Date "2022.10.06"]
[Round "2.5"]
[White "Zatonskih, Anna"]
[Black "Abrahamyan, Tatev"]
[Result "1/2-1/2"]
[ECO "E36"]
[WhiteElo "2368"]
[BlackElo "2308"]
[Annotator "TA"]
[PlyCount "41"]
[EventDate "2022.09.05"]
[EventType "tourn"]
[EventCountry "USA"]
[SourceTitle "playchess.com"]
[Source "ChessBase"]
[SourceQuality "1"]
[TimeControl "40/5400+30:1800+30"]

{[%evp 13,41,18,15,8,17,0,0,0,0,-8,0,-9,1,0,0,0,0,0,0,0,0,0,0,0,0,0,0,0,0,0]} 1. d4 {[%emt 0:00:04]} Nf6 {[%emt 0:00:04]} 2. c4 {[%emt 0:00:08]} e6 {[%emt 0:00:19]} 3. Nc3 {[%emt 0:00:15]} Bb4 {[%emt 0:00:05]} 4. Qc2 {[%emt 0:00:18]} O-O {[%emt 0:00:30]} 5. a3 {[%emt 0:01:06]} Bxc3+ {[%emt 0:00:06]} 6. Qxc3 {[%emt 0:00:06]} d5 $1 {[%emt 0:00:32][%mdl 4] is currently scoring better than 6...b6.} 7. Nf3 {[%emt 0:01:05]} Nbd7 {[%emt 0:05:32] The position is equal.} 8. Bg5 {[%emt 0:17:15] E36: Nimzo-Indian: Classical: 4...d5 5 a3.} h6 {[%emt 0:33:32]} 9. Bxf6 {[%emt 0:11:42]} Nxf6 {[%emt 0:00:25]} 10. e3 {[%emt 0:00:06]} b6 {[%emt 0:06:47]} 11. Be2 {[%emt 0:05:54]} Bb7 {[%emt 0:02:27]} 12. O-O {[%emt 0:00:32] [#]} Qe7 $146 {[%emt 0:03:17]} ({Predecessor:} 12... c5 13. dxc5 Ne4 14. Qe5 Nxc5 15. Rfd1 Rc8 16. Rac1 Qf6 17. Qxf6 gxf6 18. Nd4 dxc4 19. Rxc4 {½-½ (47) Atalik,S (2494)-Wachinger,N (2347) Novi Sad 2021}) 13. Rac1 {[%emt 0:05:51]} dxc4 {[%emt 0:06:46]} 14. Qxc4 {[%emt 0:00:29]} Rfc8 {[%emt 0:01:16]} 15. Qb5 {[%emt 0:08:29]} c6 {[%emt 0:05:26]} 16. Qa4 {[%emt 0:01:30]} c5 {[%emt 0:02:36]} 17. Rfd1 {[%emt 0:02:24]} Bc6 {[%emt 0:09:25]} 18. Qa6 {[%emt 0:04:21]} Bb7 {[%emt 0:01:05]} 19. Qa4 {[%emt 0:00:07]} Bc6 {[%emt 0:00:05]} 20. Qa6 {[%emt 0:02:53]} Bb7 {[%emt 0:00:04]} 21. Qa4 {[%emt 0:08:41] Not much happened in this game.  Weighted Error Value: White=0.03 (flawless) /Black=0.01 (flawless)} 1/2-1/2

[Event "USA Championship Women 2022"]
[Site "Saint Louis"]
[Date "2022.10.06"]
[Round "2.6"]
[White "Krush, Irina"]
[Black "Foisor, Sabina-Francesca"]
[Result "1/2-1/2"]
[ECO "A11"]
[WhiteElo "2432"]
[BlackElo "2203"]
[Annotator "TA"]
[PlyCount "140"]
[EventDate "2022.09.05"]
[EventType "tourn"]
[EventCountry "USA"]
[SourceTitle "playchess.com"]
[Source "ChessBase"]
[SourceQuality "1"]
[TimeControl "40/5400+30:1800+30"]

{[%evp 12,140,0,0,0,0,0,0,16,22,32,0,41,30,29,23,27,17,47,12,28,31,56,0,0,0,0,0,16,18,45,36,49,12,28,-15,-32,-19,-13,-36,25,28,18,20,16,25,28,19,100,99,114,114,114,105,126,119,119,110,119,112,112,97,110,108,117,110,108,82,103,103,103,103,112,122,108,107,389,389,389,389,620,606,622,584,478,469,445,400,437,356,475,255,325,153,151,142,1100,388,359,52,388,388,388,0,0,0,0,0,0,0,0,0,0,0,0,0,0,0,0,0,0,0,0,0,0,0,0,0,0,0,0]} 1. c4 {[%emt 0:03:20]} c6 {[%emt 0:00:11]} 2. Nf3 {[%emt 0:00:29]} d5 {[%emt 0:00:08]} 3. e3 {[%emt 0:00:09]} Nf6 {[%emt 0:00:31]} 4. Nc3 {[%emt 0:00:12]} e6 {[%emt 0:01:55]} 5. b3 {[%emt 0:00:21]} Bd6 {[%emt 0:01:48]} 6. Bb2 {[%emt 0:00:12]} O-O {[%emt 0:05:05]} 7. Be2 {[%emt 0:00:35]} e5 {[%emt 0:06:38] A11: English Opening: 1...c6.} 8. cxd5 {[%emt 0:01:27]} cxd5 {[%emt 0:00:04]} 9. Nb5 {[%emt 0:00:41]} Nc6 $1 {[%emt 0:00:09][%mdl 4] outshines the older 9...e4.} 10. Nxd6 {[%emt 0:00:10]} Qxd6 {[%emt 0:00:03]} 11. O-O {[%emt 0:03:11]} Bg4 {[%emt 0:06:10]} 12. h3 {[%emt 0:06:45]} Bh5 {[%emt 0:05:57] [#]} 13. d3 $146 {[%emt 0:08:11]} ({Predecessor:} 13. Rc1 Rac8 14. d3 Rfd8 15. Qd2 h6 16. Nh4 Bxe2 17. Qxe2 Qe6 18. f4 e4 19. f5 {1-0 (47) Sihite,C (2252)-Yakovich,Y (2526) Chess.com INT 2020}) 13... Rfe8 {[%emt 0:03:02]} 14. Rc1 {[%emt 0:00:50]} Rad8 {[%emt 0:07:00]} 15. Qd2 {[%emt 0:17:40]} (15. d4 $5 {[%cal Rd4e5]} Bxf3 16. Bxf3 $14) 15... Bxf3 {[%emt 0:21:54]} 16. Bxf3 {[%emt 0:00:28]} e4 {[%emt 0:00:02]} 17. Be2 {[%emt 0:08:52]} (17. dxe4 $14 Nxe4 18. Qd3) 17... d4 $11 {[%emt 0:03:17]} 18. Rcd1 {[%emt 0:02:49]} dxe3 {[%emt 0:06:58]} 19. fxe3 {[%emt 0:09:11]} exd3 {[%emt 0:03:37]} 20. Bxd3 {[%emt 0:05:17]} Ne4 {[%emt 0:06:42]} 21. Qe2 {[%emt 0:02:43]} Qe7 {[%emt 0:03:15]} 22. Rf4 {[%emt 0:04:57]} Ng5 {[%emt 0:03:11]} 23. Rdf1 {[%emt 0:05:00]} Qxe3+ {[%emt 0:05:39]} 24. Qxe3 {[%emt 0:00:13]} Rxe3 {[%emt 0:00:03]} 25. Bc4 {[%emt 0:00:47] This bishop pair is nice.} Ne5 {[%emt 0:01:46]} (25... Rd7 $1 $15) 26. Bxe5 {[%emt 0:06:48]} Rxe5 {[%emt 0:00:02]} 27. Bxf7+ {[%emt 0:00:16]} Nxf7 {[%emt 0:00:05]} 28. Rxf7 {[%emt 0:00:06][%mdl 4096] Endgame KRR-KRR} Rb5 $1 {[%emt 0:05:54]} 29. Rc7 {[%emt 0:01:16]} a5 {[%emt 0:01:42]} (29... h6 $1 $11 {remains equal.}) 30. Rff7 $16 {[%emt 0:03:39] White is more active.} Rd1+ {[%emt 0:00:11]} 31. Kh2 {[%emt 0:02:01]} Rg5 {[%emt 0:01:15]} 32. Rf2 {[%emt 0:00:17] Inhibits Rd2. White wants to mate with Rc8+.} (32. Rxb7 Rd2 33. Kh1 Rgxg2 $15) 32... h5 {[%emt 0:00:45]} 33. Rxb7 {[%emt 0:00:08]} Kh7 {[%emt 0:00:50]} 34. Rc7 {[%emt 0:00:45]} Re5 {[%emt 0:00:46]} 35. Rff7 {[%emt 0:03:36]} Rg5 {[%emt 0:00:06]} 36. Rc2 {[%emt 0:00:27] Prevents Rd2.} Kh6 {[%emt 0:00:51]} 37. Rfc7 {[%emt 0:01:07]} Rdd5 {[%emt 0:00:14]} 38. R7c4 {[%emt 0:01:04]} Rge5 {[%emt 0:00:34]} 39. h4 {[%emt 0:02:01]} Rb5 {[%emt 0:01:02]} 40. Rc6+ {[%emt 0:01:28]} Kh7 {[%emt 0:00:24][%cal Oa5a4]} 41. R2c3 {[%emt 0:08:52]} Re2 {[%emt 0:07:33]} 42. a4 {[%emt 0:00:43]} Rb4 {[%emt 0:02:31]} 43. R6c4 {[%emt 0:00:19] Black must now prevent Rxb4.} Re4 $2 {[%emt 0:01:05][%mdl 8192]} (43... Rb2 $16) 44. Rxe4 $18 {[%emt 0:02:19]} Rxe4 {[%emt 0:00:02] KR-KR} 45. Rc5 $1 {[%emt 0:09:49][%csl LRa5,LRh5]} Rxh4+ {[%emt 0:02:09]} (45... Re3 $142 46. Rxh5+ Kg6 47. Rxa5 Rxb3 48. h5+ Kh6) 46. Kg1 {[%emt 0:00:02]} Kh6 {[%emt 0:03:43]} 47. Rxa5 {[%emt 0:00:09]} Rd4 {[%emt 0:00:17]} 48. Rb5 {[%emt 0:01:17]} h4 {[%emt 0:06:44]} 49. a5 {[%emt 0:01:58]} Rd1+ {[%emt 0:00:06]} 50. Kf2 {[%emt 0:01:29] Strongly threatening b4.} Ra1 {[%emt 0:00:06]} 51. Kf3 {[%emt 0:01:23]} (51. Rb6+ $142 Kg5 52. a6) 51... Ra2 {[%emt 0:03:46] [#]} 52. b4 {[%emt 0:00:44]} (52. Kg4 $1 $18 {is the precise move to win.}) 52... g5 $16 {[%emt 0:01:04]} 53. Rb8 {[%emt 0:03:27]} Ra3+ $2 {[%emt 0:02:16][%mdl 8192]} (53... Kg7 $16 54. Rc8 Ra4) 54. Ke4 $2 {[%emt 0:00:35]} (54. Kg4 {Threatens to win with Rb6+.} Rg3+ 55. Kf5 Rxg2 56. b5 Rf2+ 57. Kg4 Rf4+ 58. Kh3) 54... Ra2 $18 {[%emt 0:03:07] [#]} 55. Rb6+ $2 {[%emt 0:03:24]} ({Only move:} 55. Kf5 $1 $18) 55... Kh5 $2 {[%emt 0:00:07][%mdl 8192]} (55... Kg7 $1 $14) 56. a6 {[%emt 0:00:05]} Rxg2 {[%emt 0:02:27]} 57. Rb5 $2 {[%emt 0:00:01]} (57. Rb8 $18 Re2+ 58. Kf5 Rf2+ 59. Ke6 Re2+ 60. Kf6 (60. Kf5 Rf2+ 61. Ke6 Re2+ 62. Kf5 $16)) 57... h3 $1 $11 {[%emt 0:00:30] The position is equal.} 58. a7 {[%emt 0:02:29]} Ra2 $1 {[%emt 0:01:05] ( -> ...h2)} (58... h2 {leads to mate.} 59. a8=Q Rg1 60. Qh8+ Kg4 61. Qxh2 Re1+ 62. Kd3) 59. Rb7 {[%emt 0:00:19]} (59. Ra5 {gets mated.} Rxa5 60. bxa5 h2 61. Kf3 h1=Q+ 62. Ke3 g4 63. a6 Qa8 64. Kf4 Qxa7 65. Ke4 g3 66. Kf3 Qf2+ 67. Ke4 g2 68. Kd3 g1=Q 69. Kc3 Qd4+ 70. Kb3 Qb1+ 71. Ka3 Qdb4#) 59... Kg4 {[%emt 0:00:58]} 60. b5 {[%emt 0:00:55]} (60. Rh7 $5 {[%cal Rb4b5]} h2 61. b5 Rxa7 62. Rxh2 $11) 60... h2 {[%emt 0:00:23]} 61. Rh7 {[%emt 0:00:08] White threatens b6 and mate.} Rxa7 {[%emt 0:00:29]} 62. Rxh2 {[%emt 0:00:07]} Ra4+ {[%emt 0:00:36]} 63. Kd5 {[%emt 0:00:19]} Rb4 {[%emt 0:00:10] aiming for ...Kg3.} 64. Kc5 {[%emt 0:00:56]} Rb1 {[%emt 0:00:06]} 65. Rc2 {[%emt 0:00:30]} Kf3 {[%emt 0:00:44]} 66. Rc3+ {[%emt 0:00:10]} Kf4 {[%emt 0:00:47]} 67. Rc4+ {[%emt 0:00:13]} Kf3 {[%emt 0:00:05]} 68. Rc3+ {[%emt 0:01:09]} Kf4 {[%emt 0:00:04]} 69. Rc4+ {[%emt 0:00:06]} Kf3 {[%emt 0:00:04]} 70. Rc3+ {[%emt 0:00:07]} Kf4 {[%emt 0:00:17] Black defended with fortune.  Weighted Error Value: White=0.42/Black=0.36} 1/2-1/2

[Event "USA Championship Women 2022"]
[Site "Saint Louis"]
[Date "2022.10.07"]
[Round "3.1"]
[White "Cervantes Landeiro, Thalia"]
[Black "Lee, Alice"]
[Result "1/2-1/2"]
[ECO "D12"]
[WhiteElo "2272"]
[BlackElo "2263"]
[Annotator "TA"]
[PlyCount "83"]
[EventDate "2022.09.05"]
[EventType "tourn"]
[EventCountry "USA"]
[SourceTitle "playchess.com"]
[Source "ChessBase"]
[SourceQuality "1"]
[TimeControl "40/5400+30:1800+30"]

{[%evp 15,83,33,22,33,36,9,13,11,8,21,20,16,23,9,10,8,30,0,0,7,14,24,24,18,20,-14,-9,-25,27,19,6,0,0,0,0,-12,0,-70,0,0,0,0,0,0,0,0,0,0,0,0,0,0,0,0,0,0,0,0,0,0,0,0,0,0,0,0,0,0,0,0]} 1. d4 {[%emt 0:00:03]} d5 {[%emt 0:00:03]} 2. c4 {[%emt 0:00:06]} c6 {[%emt 0:00:03]} 3. Nf3 {[%emt 0:00:13]} Nf6 {[%emt 0:00:06]} 4. e3 {[%emt 0:00:06]} Bf5 {[%emt 0:00:05]} 5. Nc3 {[%emt 0:00:15]} e6 {[%emt 0:00:04]} 6. Nh4 {[%emt 0:00:59]} Be4 {[%emt 0:00:07]} 7. f3 {[%emt 0:01:22]} Bg6 {[%emt 0:00:10]} 8. Qb3 {[%emt 0:00:41]} Qc7 {[%emt 0:00:08]} 9. Bd2 {[%emt 0:02:01] D12: Slav Defence: 3 Nf3 Nf6 4 e3 Bf5.} Be7 {[%emt 0:00:08]} 10. O-O-O {[%emt 0:09:37]} dxc4 {[%emt 0:00:57]} 11. Bxc4 {[%emt 0:00:33]} a6 {[%emt 0:00:20]} 12. Nxg6 {[%emt 0:02:51]} hxg6 {[%emt 0:00:06]} 13. Ne4 {[%emt 0:08:52]} b5 {[%emt 0:03:29]} 14. Be2 {[%emt 0:02:27]} Nbd7 {[%emt 0:03:13]} 15. Kb1 {[%emt 0:08:02]} Rc8 {[%emt 0:09:13]} 16. Be1 {[%emt 0:11:41][%cal Bd2e1,Be1g3,Bg3e5][%mdl 32] [#]} c5 $146 {[%emt 0:07:54]} ({Predecessor:} 16... O-O 17. Nxf6+ Bxf6 18. Qa3 Rfe8 19. e4 Be7 20. Qa5 Qb7 21. Bb4 c5 22. dxc5 Nxc5 {½-½ (31) Susla,V (2324)-Celan,M (2100) LSS email 2016}) 17. Bg3 {[%emt 0:03:37]} Qc6 {[%emt 0:09:41]} 18. Nxc5 {[%emt 0:02:47]} Nxc5 {[%emt 0:00:14]} 19. dxc5 {[%emt 0:00:10]} Bxc5 {[%emt 0:00:41]} (19... Qxc5 $2 20. Rc1 Qf5+ 21. e4 Rxc1+ 22. Rxc1 Nxe4 23. Rc8+ Bd8 24. fxe4 Qxe4+ 25. Qc2 Qxc2+ 26. Kxc2 $18) 20. Be5 {[%emt 0:06:42]} O-O {[%emt 0:03:02][%cal Of6g4]} 21. h4 {[%emt 0:02:34]} (21. Rd2 {is more complex.} Bb6 22. Rhd1 Nd5 23. Bd4) 21... Rfd8 {[%emt 0:03:55]} (21... Be7 $142) 22. Rxd8+ $1 $11 {[%emt 0:11:54]} Rxd8 {[%emt 0:00:07]} 23. Rc1 {[%emt 0:02:56] [#] Threatens to win with Bxf6.} Rd5 {[%emt 0:09:04]} 24. Bxf6 {[%emt 0:06:44]} gxf6 {[%emt 0:00:22]} 25. Qc3 {[%emt 0:01:16] Against Rd2. Hoping for b4.} Qd7 {[%emt 0:06:00]} 26. h5 {[%emt 0:01:39]} ({White should play} 26. e4 $11 Rd2 27. Qxc5 Rxe2 28. Qc8+ Qxc8 29. Rxc8+ Kg7 30. Rc2 Re1+ 31. Rc1) 26... Be7 {[%emt 0:04:54]} ({Much less strong is} 26... Rxh5 27. f4 Rd5 28. Bf3 $14) (26... b4 $15 27. Qb3 gxh5) 27. hxg6 {[%emt 0:02:30] The position is equal.} fxg6 {[%emt 0:00:45]} (27... Rd2 {looks sharper.} 28. Qc8+ Qxc8 29. Rxc8+ Kg7) 28. f4 {[%emt 0:01:39]} Rc5 {[%emt 0:01:12]} 29. Qb3 {[%emt 0:04:00]} Rxc1+ {[%emt 0:09:21]} 30. Kxc1 {[%emt 0:00:02][%mdl 4096] Endgame KQB-KQB} Qc6+ {[%emt 0:00:07]} 31. Kd1 {[%emt 0:00:20]} Qe4 {[%emt 0:00:39]} 32. Bf3 {[%emt 0:00:59]} Qb1+ {[%emt 0:00:46]} 33. Ke2 {[%emt 0:00:08]} Kf7 {[%emt 0:00:22]} 34. a3 {[%emt 0:02:27]} f5 {[%emt 0:03:43]} 35. g4 {[%emt 0:02:33]} Bf6 {[%emt 0:03:03]} 36. gxf5 {[%emt 0:00:29]} gxf5 {[%emt 0:01:10]} 37. Bh5+ {[%emt 0:01:05]} Ke7 {[%emt 0:00:17]} 38. Qb4+ {[%emt 0:00:19]} Kd7 {[%emt 0:00:06]} 39. Qd2+ {[%emt 0:00:37]} Ke7 {[%emt 0:04:12]} 40. Qb4+ {[%emt 0:00:16]} Kd7 {[%emt 0:00:07]} 41. Qd2+ {[%emt 0:30:10]} Ke7 {[%emt 0:35:15]} 42. Qb4+ {[%emt 0:00:18] An even fight not without its subleties.  Weighted Error Value: White=0.08 (flawless) /Black=0.06 (flawless)} 1/2-1/2